Cogmind - Beta 10.1 @@@ ROGUE MODE // 2021.04.12 @ 07:25:26 Player: Farfid Result: Destroyed by G-67 Veteran with Plasma Rifle Performance ------------- Evolutions (6) 3000 Regions Visited (11) 2200 Robots Destroyed (228) 1140 Value Destroyed (9444) 9444 Prototype IDs (18) 360 Alien Tech Used (0) 0 Bonus (2342) 2342 TOTAL SCORE: 18486 Bonus ------- High Alert Combat Kills 904 Follower Combat Kills 1306 Network Hubs Disabled 200 Friendly Fire -68 Cogmind --------- Core Integrity 0/1150 Matter 225/300 Energy 100/100 System Corruption 5% Temperature Cool (0) Movement Core (50) Location -4/Factory Parts ------- > --- POWER (2) -------- (None) > --- PROPULSION (5) --- (None) > --- UTILITY (8) ------ Improved Core Analyzer > --- WEAPON (4) ------- (None) > --- INVENTORY (4) ---- Large Storage Unit Compact Matter Pod (150) Advanced Transmission Jammer Peak State ------------ > --- POWER ------------ Reinforced Deuterium Engine Reinforced Fission Core > --- PROPULSION ------- Heavy Treads Centrium Heavy Treads Compact Wheel > --- UTILITY ---------- Advanced Heat Sink Large Storage Unit Large Storage Unit Advanced Visual Processing Unit Core Analyzer Centrium Medium Armor Plating > --- WEAPON ----------- Heavy Laser Gatling Laser KE Penetrator Improved KE Penetrator > --- INVENTORY -------- Quantum Reactor Advanced Cooling System Large Storage Unit Large Storage Unit Compact Matter Pod Long-range Sensor Array Advanced Signal Interpreter Centrium Medium Armor Plating Drone Bay Gatling Laser Gauss Cannon Mass Driver Segregator Phasing Sabre [Rating: 92] Favorites ----------- Power Reinforced Deuterium Engine Engine Reinforced Deuterium Engine Power Core Fission Core Reactor Light Antimatter Reactor Propulsion Compact Wheel Treads Light Treads Leg Flexi-carbon Leg Wheel Compact Wheel Flight Unit Impulse Thruster Utility Large Storage Unit Device Advanced Heat Sink Storage Large Storage Unit Processor Advanced Visual Processing Unit Hackware Hacking Suite Protection Centrium Medium Armor Plating Weapon Heavy Laser Energy Gun Heavy Laser Energy Cannon Plasma Cannon Ballistic Gun Gauss Rifle Ballistic Cannon Flak Cannon Launcher Smartbomb Launcher Slashing Weapon Segregator Build | -11 -10 -9 -8 -7 -6 -6 -6 -6 -6 -5 -4 ------- Run | Scr Mat Mat Mat Fac Fac Ext Cet Arc Hub Fac Fac Slots Evolved 12 | . . 2 2 2 2 . . . . 2 2 Power 1 | . . . 1 . . . . . . . . Propulsion 3 | . . . 1 . 2 . . . . . . Utility 6 | . . 1 . 2 . . . . . 1 2 Weapon 2 | . . 1 . . . . . . . 1 . Parts Attached 316 | 7 2 26 30 19 8 68 11 5 4 66 70 Power 36 | 1 . 3 2 2 . 10 5 . . 7 6 Engine 13 | 1 . 3 2 2 . 4 1 . . . . Core 15 | . . . . . . 5 . . . 5 5 Reactor 8 | . . . . . . 1 4 . . 2 1 Propulsion 76 | 2 . 5 7 3 3 23 3 3 2 11 14 Treads 26 | . . . 1 . 1 10 3 3 . 4 4 Leg 2 | . . . . . . 2 . . . . . Wheel 47 | 2 . 5 6 3 2 11 . . 2 7 9 Hover . | . . . . . . . . . . . . Flight 1 | . . . . . . . . . . . 1 Utility 66 | 1 2 5 3 6 2 14 1 . . 16 16 Device 31 | . 1 3 2 1 2 4 . . . 9 9 Storage 6 | 1 1 . 1 . . 1 . . . 1 1 Processor 4 | . . 1 . 1 . . . . . 2 . Hackware 2 | . . 1 . . . 1 . . . . . Protection 23 | . . . . 4 . 8 1 . . 4 6 Artifact . | . . . . . . . . . . . . Weapon 138 | 3 . 13 18 8 3 21 2 2 2 32 34 Energy Gun 51 | 2 . 2 7 4 1 8 . 1 . 16 10 Energy Cannon 6 | . . . . 1 . 1 . . . 4 . Ballistic Gun 60 | 1 . 11 9 2 2 7 2 1 1 10 14 Ballistic Cannon 12 | . . . 2 1 . 4 . . 1 2 2 Launcher 3 | . . . . . . . . . . . 3 Special Weapon . | . . . . . . . . . . . . Impact Weapon . | . . . . . . . . . . . . Slashing Weapon 6 | . . . . . . 1 . . . . 5 Piercing Weapon . | . . . . . . . . . . . . Special Melee Weapon . | . . . . . . . . . . . . Unidentified Prototypes 18 | . . 1 2 . . 1 3 . 1 8 2 Parts Lost 104 | . . 3 6 1 2 21 6 . . 25 40 Power 10 | . . . 1 . . 2 . . . 1 6 Propulsion 33 | . . 1 2 . . 11 3 . . 8 8 Utility 15 | . . . . . . 2 . . . 3 10 Weapon 46 | . . 2 3 1 2 6 3 . . 13 16 Highest Loss Streak 27 | . . 2 3 1 2 9 3 . . 5 27 Average Slot Usage (%) 93 | . 90 97 95 99 96 95 90 93 92 89 89 Engine 6 | . 14 10 15 15 13 4 3 6 6 2 . Core 4 | . . . . . . 6 . . . 6 7 Reactor 1 | . . . . . . . 8 6 6 1 1 Treads 8 | . . . 5 . 6 12 18 26 20 5 7 Wheel 15 | . 28 21 20 23 23 17 6 . 5 13 13 Device 8 | . 5 10 9 6 6 6 6 6 6 9 14 Storage 12 | . 14 11 9 15 13 13 13 13 13 11 11 Processor 5 | . . 6 . 6 6 6 6 6 6 6 5 Hackware 1 | . . 3 8 . . . . . . . . Protection 4 | . . . . 8 6 4 6 6 6 5 6 Energy Gun 7 | . 28 6 8 6 1 4 . 3 . 9 10 Energy Cannon 1 | . . . . 3 2 1 . . . 2 . Ballistic Gun 11 | . . 25 17 11 14 9 14 15 19 9 7 Ballistic Cannon 1 | . . . . . . 3 2 . . . . Naked Turns . | . . . . . . . . . . . . Heaviest Build 99 | 11 24 34 50 74 73 87 93 82 82 99 96 Greatest Support 161 | 26 26 26 42 48 52 52 158 161 156 70 52 Greatest Overweight (x) 8 | 2 . 2 2 2 1 7 4 . 3 5 8 Average Overweight (x) 1 | . . . . 1 1 1 1 . 1 2 2 Largest Inventory Capacity 16 | 6 12 10 16 16 16 16 16 16 16 16 16 Average Capacity 14 | 5 8 10 10 16 16 16 16 16 16 16 15 Most Carried 16 | 4 7 10 10 16 16 16 16 16 16 16 16 Average Carried 13 | 3 5 8 9 14 13 15 15 15 15 15 14 Final Capacity 16 | 6 10 10 16 16 16 16 16 16 16 16 4 Final Carried 16 | 3 7 10 10 16 16 16 14 16 15 16 3 Class Distribution -------------------- 39% | Scavenger-Tank 27% | Scavenger-Gunner 8% | Scavenger-Mutant 8% | Gunner 7% | Commander-Tank 4% | Mutant Dominant Class ---------------- Mutant | -10/Materials Gunner | -9/Materials Gunner | -8/Materials Scavenger-Tank | -7/Factory Scavenger-Tank | -6/Factory Scavenger-Tank | -6/Extension Scavenger-Tank | -6/Cetus Scavenger-Tank | -6/Archives Scavenger-Tank | -6/Hub_04(d) Scavenger-Gunner | -5/Factory Scavenger-Tank | -4/Factory Resources | -11 -10 -9 -8 -7 -6 -6 -6 -6 -6 -5 -4 ----------- Run | Scr Mat Mat Mat Fac Fac Ext Cet Arc Hub Fac Fac Matter Collected 7566 | 190 38 875 1027 343 172 1686 469 157 182 1436 991 Remotely . | . . . . . . . . . . . . Salvage Created 12128 | . 38 1166 1333 679 259 2659 374 323 316 3398 1583 Parts 514 | . 3 75 62 35 14 87 18 14 15 109 82 Haulers Intercepted 9 | . . 2 2 1 . 2 . . . 2 . Recyclers Shooed 9 | . . 4 1 . . 2 . . . 2 . Parts Field Recycled . | . . . . . . . . . . . . Retrieved Matter . | . . . . . . . . . . . . Parts Self-Destructed . | . . . . . . . . . . . . Prevented . | . . . . . . . . . . . . Kills | -11 -10 -9 -8 -7 -6 -6 -6 -6 -6 -5 -4 ------- Run | Scr Mat Mat Mat Fac Fac Ext Cet Arc Hub Fac Fac Combat Hostiles Destroyed 176 | . . 26 18 8 4 32 6 4 5 44 29 Guns 142 | . . 25 17 6 4 23 4 4 5 33 21 Cannons 27 | . . . 1 2 . 9 2 . . 11 2 AOE 6 | . . . . . . . . . . . 6 Classes Destroyed 16 | . 2 6 1 1 . 1 1 1 . 1 2 Worker 11 | . 1 2 . 1 2 . . . 1 2 2 Builder 7 | . . . 1 . . 3 . . 1 . 2 Tunneler 1 | . . . . . . . . . . . 1 Hauler 9 | . . 2 2 1 . 2 . . . 2 . Recycler 17 | . . 1 4 2 . 5 . . . 4 1 Mechanic 1 | . . . . . . . . . . . 1 Operator 2 | . . . . . . . . 1 1 . . Watcher 4 | . 1 . . 1 . 1 1 . . . . Swarmer 27 | . . 7 . . . 3 2 . 2 . 13 Grunt 87 | . . 12 16 2 4 17 1 . 2 26 7 Brawler 4 | . . . . . . . 1 . . 2 1 Duelist 5 | . . 2 . 1 . . . . . 2 . Protector 1 | . . . . . . . . . . 1 . Sentry 30 | . . 5 2 3 . 9 . 4 1 3 3 Hunter 8 | . . . . . . 2 . . . 4 2 Programmer 12 | . . . . 2 . 1 . . . 6 3 Cetus Guard 2 | . . . . . . . 2 . . . . Best Kill Streak 8 | . 1 6 7 3 5 5 4 3 6 8 8 Combat Bots Only 7 | . . 5 6 3 4 5 4 2 5 7 6 Max Kills in Single Turn 3 | . 1 2 1 2 1 2 1 1 2 2 3 Gunslinging 1 | . . 1 . . . . . . . 1 . Exploded 2 | . . . . . . . . . . . 2 Melee . | . . . . . . . . . . . . Uniques/NPCs Destroyed . | . . . . . . . . . . . . Combat | -11 -10 -9 -8 -7 -6 -6 -6 -6 -6 -5 -4 -------- Run | Scr Mat Mat Mat Fac Fac Ext Cet Arc Hub Fac Fac Damage Taken 18382 | . 25 857 1129 798 250 3387 1075 430 599 4472 5360 Core 2548 | . . 149 164 138 19 276 13 99 175 361 1154 Absorbed by Shields 232 | . . . . . . 28 . . . 133 71 Core Remaining (%) 72 | 100 100 62 70 80 . . . . 31 63 . Volleys Fired 604 | . 3 78 75 36 11 119 30 18 12 135 87 Largest 4 | . 2 3 3 3 3 3 3 3 3 4 4 Hottest 261 | . 80 120 155 188 136 177 125 143 96 238 261 Shots Fired 1767 | . 6 233 214 92 30 332 71 32 33 487 237 Gun 1523 | . 6 233 204 66 24 242 47 32 33 413 223 Cannon 239 | . . . 10 26 6 90 24 . . 74 9 Launcher 5 | . . . . . . . . . . . 5 Special . | . . . . . . . . . . . . Kinetic 1085 | . . 217 151 35 24 219 71 25 33 211 99 Thermal 585 | . . 2 44 57 6 113 . 7 . 246 110 Explosive 5 | . . . . . . . . . . . 5 Electromagnetic 92 | . 6 14 19 . . . . . . 30 23 Robot Hit Streak 26 | . 2 14 13 9 5 20 5 23 18 26 11 Robot Miss Streak 9 | . 3 8 7 5 3 9 5 1 5 5 5 Penetration Max 2 | . . . . 1 1 2 1 1 1 2 1 Secondary Targets 10 | . . 4 . . 1 . . . . 4 1 Max Gunslinging Chain 1 | . . 1 . . 1 . . . . 1 1 Shots Hit Robots 1192 | . 2 153 142 61 15 244 42 31 22 342 138 Core Hits 698 | . 2 60 58 27 16 200 16 21 26 194 78 Critical Hits 41 | . . 2 1 . . 9 14 5 1 5 4 Critical Kills 17 | . . 1 . . . 3 6 3 1 2 1 Critical Parts Destroyed 24 | . . 1 1 . . 6 8 2 . 3 3 Melee Attacks 6 | . . . . . . 1 . . . . 5 Thermal 5 | . . . . . . . . . . . 5 Impact . | . . . . . . . . . . . . Slashing 1 | . . . . . . 1 . . . . . Piercing . | . . . . . . . . . . . . Sneak Attacks . | . . . . . . . . . . . . Combat Hostiles . | . . . . . . . . . . . . Follow-up Attacks . | . . . . . . . . . . . . Damage Inflicted 24632 | . 69 1618 2114 1250 444 5098 607 758 750 7627 4297 Guns 19059 | . 35 1581 2029 859 338 3673 313 758 619 6139 2715 Cannons 3902 | . . . 85 391 106 1425 294 . . 1363 238 Explosions 1656 | . 34 37 . . . . . . 131 125 1329 Melee . | . . . . . . . . . . . . Ramming 15 | . . . . . . . . . . . 15 Kinetic 12926 | . . 1437 1395 468 338 3468 607 563 619 2880 1151 Thermal 9018 | . 34 66 467 782 106 1630 . 195 . 4294 1444 Explosive 1403 | . . . . . . . . . . 74 1329 Electromagnetic 1270 | . 35 115 252 . . . . . 131 379 358 Impact . | . . . . . . . . . . . . Slashing . | . . . . . . . . . . . . Piercing . | . . . . . . . . . . . . Highest Corruption 13 | . . . . 2 . 2 2 2 2 13 5 Average Corruption 3 | . . . . 2 . 1 2 2 2 7 1 Corruption Purged . | . . . . . . . . . . . . Effects 139 | . . . . 15 . 9 7 5 2 96 5 Message Errors 27 | . . . . 1 . 6 3 1 . 14 2 Matter Fused 11 | . . . . . . . . . . 11 . Heat Flow Errors 12 | . . . . 3 . 1 1 1 1 5 . Energy Discharges 11 | . . . . 1 . 2 1 1 1 5 . Parts Rejected 1 | . . . . . . . . . . 1 . Data Loss (minor) 11 | . . . . 5 . . 1 2 . 3 . Data Loss (major) 4 | . . . . . . . . . . 4 . Misfires 4 | . . . . . . . . . . 4 . Misdirections 5 | . . . . . . . . . . 5 . Targeting Errors 41 | . . . . 4 . . . . . 35 2 Weapon Failures 12 | . . . . 1 . . 1 . . 9 1 Overload Shots 2 | . . . . . . . . . . 2 . Overflow Damage 91 | . . 7 . . . 2 . . . 67 15 Projectiles 69 | . . . . . . 2 . . . 67 . Explosions 22 | . . 7 . . . . . . . . 15 Melee . | . . . . . . . . . . . . Knockbacks 30 | . . . 1 . . 19 3 . . 4 3 Impact . | . . . . . . . . . . . . Kinetic 28 | . . . 1 . . 18 2 . . 4 3 Secondary 2 | . . . . . . 1 1 . . . . Self-Inflicted Damage 266 | . 25 22 . . . . . . 99 76 44 Shots 5 | . 1 1 . . . . . . 1 1 1 Rammed 5 | . . . . . . . . . . . 5 Targets Rammed 5 | . . . . . . . . . . . 5 Kicked . | . . . . . . . . . . . . Crushed . | . . . . . . . . . . . . Highest Temperature 341 | . 30 148 81 305 198 312 201 201 128 198 341 Average Temperature 81 | . 15 46 11 104 114 54 89 57 31 72 132 Received Heat Transfer 4218 | . . 267 630 168 90 1092 81 54 42 993 801 Effects 4 | . . . . . . . 2 . . . 2 Shutdowns 1 | . . . . . . . . . . . 1 Energy Bleed 1 | . . . . . . . . . . . 1 Interference 2 | . . . . . . . 2 . . . . Siege Activations . | . . . . . . . . . . . . Robots Corrupted 1 | . . 1 . . . . . . . . . Combat Hostiles 1 | . . 1 . . . . . . . . . Parts Fried 5 | . . 3 1 . . . . . . 1 . Impact Corruptions . | . . . . . . . . . . . . Robots Melted . | . . . . . . . . . . . . Combat Hostiles . | . . . . . . . . . . . . Parts Melted 32 | . . . 2 2 . 8 . . . 15 5 Heat Transferred 15673 | . . 124 1147 1466 200 3222 . 450 . 6673 2391 Parts Sabotaged . | . . . . . . . . . . . . Parts Stolen . | . . . . . . . . . . . . Parts Stripped . | . . . . . . . . . . . . Power Chain Reactions 3 | . 1 1 . . . . . . . 1 . Missiles Intercepted . | . . . . . . . . . . . . Alert | -11 -10 -9 -8 -7 -6 -6 -6 -6 -6 -5 -4 ------- Run | Scr Mat Mat Mat Fac Fac Ext Cet Arc Hub Fac Fac Peak Influence 1025 | . 58 381 224 157 157 1025 716 416 560 820 659 Initial 573 | . . 24 97 . 76 76 573 282 145 274 387 Average 315 | . 21 212 104 70 119 352 663 371 311 376 481 Maximum Alert Level 3 | . . 1 1 . . 3 3 2 2 3 2 Low Security (%) 34 | 100 100 43 92 100 100 31 . . 27 6 . Level 1 36 | . . 56 7 . . 34 . 53 59 69 25 Level 2 21 | . . . . . . 24 51 46 12 9 74 Level 3 7 | . . . . . . 10 48 . . 14 . Level 4 . | . . . . . . . . . . . . Level 5 . | . . . . . . . . . . . . High Security . | . . . . . . . . . . . . Max Security . | . . . . . . . . . . . . Squads Dispatched 31 | . 1 3 5 2 . 7 . . 2 7 4 Investigation 4 | . . 1 . . . 3 . . . . . Extermination 5 | . . . . 1 . . . . . 2 2 Reinforcement 15 | . 1 2 5 . . 2 . . 2 2 1 Assault 5 | . . . . . . 2 . . . 2 1 Garrison 2 | . . . . 1 . . . . . 1 . Intercept . | . . . . . . . . . . . . Construction Impeded 3 | . . . 1 . . 1 . . 1 . . Haulers Reinforced 2 | . . . . . . . . . . 2 . Stealth | -11 -10 -9 -8 -7 -6 -6 -6 -6 -6 -5 -4 --------- Run | Scr Mat Mat Mat Fac Fac Ext Cet Arc Hub Fac Fac Distress Signals 18 | . . 3 2 1 . 4 2 . 2 2 2 Communications Jammed . | . . . . . . . . . . . . Distress Signals . | . . . . . . . . . . . . Times Spotted 341 | . 2 34 43 16 4 80 22 7 15 57 61 Peak Tracking Total 16 | . 1 6 8 3 4 10 6 1 12 10 16 Tactical Retreats 41 | . . . 9 . 1 11 6 1 1 5 7 Traps | -11 -10 -9 -8 -7 -6 -6 -6 -6 -6 -5 -4 ------- Run | Scr Mat Mat Mat Fac Fac Ext Cet Arc Hub Fac Fac Traps Triggered 13 | . . 3 . 3 1 4 . . . 1 1 Indirectly . | . . . . . . . . . . . . Trap Hack Attempts . | . . . . . . . . . . . . Triggered . | . . . . . . . . . . . . Disarmed . | . . . . . . . . . . . . Reprogrammed . | . . . . . . . . . . . . Reused . | . . . . . . . . . . . . Traps Extracted . | . . . . . . . . . . . . Installed . | . . . . . . . . . . . . Triggered . | . . . . . . . . . . . . Machines | -11 -10 -9 -8 -7 -6 -6 -6 -6 -6 -5 -4 ---------- Run | Scr Mat Mat Mat Fac Fac Ext Cet Arc Hub Fac Fac Machines Disabled 28 | . . . 1 . . 6 3 1 6 6 5 Max in Single Turn 4 | . . . 1 . . 1 1 1 3 4 1 Garrison Access 1 | . . . . 1 . . . . . . . Network Hub 1 | . . . . . . . . . 1 . . Machines Sabotaged . | . . . . . . . . . . . . Garrisons Compromised . | . . . . . . . . . . . . Overloaded Fab Kills . | . . . . . . . . . . . . Fab Network Shutdowns . | . . . . . . . . . . . . Hacking | -11 -10 -9 -8 -7 -6 -6 -6 -6 -6 -5 -4 --------- Run | Scr Mat Mat Mat Fac Fac Ext Cet Arc Hub Fac Fac Machines Accessed 51 | . 3 7 3 4 . 11 3 1 2 11 6 Terminals 40 | . 3 5 3 2 . 11 3 . 2 8 3 Fabricators 1 | . . . . 1 . . . . . . . Repair Stations 3 | . . 1 . . . . . . . . 2 Recycling Units 2 | . . . . . . . . . . 2 . Scanalyzers 2 | . . 1 . . . . . . . 1 . Garrison Access 2 | . . . . 1 . . . . . . 1 Total Hacks 142 | . 5 20 8 6 . 21 10 25 5 26 16 Successful 70 | . 4 18 4 1 . 4 3 25 1 8 2 Failed 72 | . 1 2 4 5 . 17 7 . 4 18 14 Catastrophic 23 | . . 1 1 . . 5 2 . 2 9 3 Database Lockouts . | . . . . . . . . . . . . Manual 30 | . 1 3 3 1 . 8 . . . 13 1 Terminals 95 | . 5 8 8 3 . 21 10 . 5 23 12 Fabricators 1 | . . . . 1 . . . . . . . Repair Stations 4 | . . 2 . . . . . . . . 2 Recycling Units 2 | . . . . . . . . . . 2 . Scanalyzers 11 | . . 10 . . . . . . . 1 . Garrison Access 4 | . . . . 2 . . . . . . 2 Terminal Hacks 55 | . 4 6 4 . . 4 3 25 1 6 2 Record 29 | . . . . . . 1 3 25 . . . Open Door 2 | . . . . . . 2 . . . . . Level Access Points 3 | . 1 1 . . . . . . . 1 . Branch Access Points 3 | . 1 . . . . . . . 1 . 1 Terminal Index 1 | . . . . . . . . . . 1 . Unreport Threat 7 | . . 2 2 . . 1 . . . 1 1 Locate Traps 3 | . . . 1 . . . . . . 2 . Recall Reinforcements 2 | . . 1 1 . . . . . . . . Hauler Manifests 1 | . . 1 . . . . . . . . . Registered Components 1 | . 1 . . . . . . . . . . Zone Layout 3 | . 1 1 . . . . . . . 1 . Fabricator Hacks . | . . . . . . . . . . . . Repair Station Hacks 2 | . . 2 . . . . . . . . . Scan Component 1 | . . 1 . . . . . . . . . Repair 1 | . . 1 . . . . . . . . . Recycling Unit Hacks . | . . . . . . . . . . . . Scanalyzer 10 | . . 10 . . . . . . . . . Insert Component 5 | . . 5 . . . . . . . . . Analyze 5 | . . 5 . . . . . . . . . Garrison Access Hacks 1 | . . . . 1 . . . . . . . Seal Access 1 | . . . . 1 . . . . . . . Unauthorized Hacks 2 | . . . . . . . . . . 2 . Terminals . | . . . . . . . . . . . . Fabricators . | . . . . . . . . . . . . Repair Stations . | . . . . . . . . . . . . Recycling Units 2 | . . . . . . . . . . 2 . Reject 2 | . . . . . . . . . . 2 . Scanalyzers . | . . . . . . . . . . . . Garrison Access . | . . . . . . . . . . . . Data Cores Recovered . | . . . . . . . . . . . . Used . | . . . . . . . . . . . . Hacking Detections 42 | . 2 3 3 4 . 10 3 . 2 9 6 Full Trace Events 3 | . . . . . . 3 . . . . . Feedback Events . | . . . . . . . . . . . . Feedback Blocked . | . . . . . . . . . . . . Robot Schematics Acquired . | . . . . . . . . . . . . Robots Built . | . . . . . . . . . . . . Matter . | . . . . . . . . . . . . Time . | . . . . . . . . . . . . Total Robot Build Rating . | . . . . . . . . . . . . Part Schematics Acquired 5 | . . 5 . . . . . . . . . Parts Built . | . . . . . . . . . . . . Matter . | . . . . . . . . . . . . Time . | . . . . . . . . . . . . Total Part Build Rating . | . . . . . . . . . . . . Parts Repaired 1 | . . 1 . . . . . . . . . Time 51 | . . 51 . . . . . . . . . Parts Recycled . | . . . . . . . . . . . . Recycled Matter . | . . . . . . . . . . . . Retrieved Matter . | . . . . . . . . . . . . Retrieved Components . | . . . . . . . . . . . . Parts Scanalyzed 5 | . . 5 . . . . . . . . . Part Schematics Acquired 5 | . . 5 . . . . . . . . . Parts Damaged 1 | . . 1 . . . . . . . . . Bothacking | -11 -10 -9 -8 -7 -6 -6 -6 -6 -6 -5 -4 ------------ Run | Scr Mat Mat Mat Fac Fac Ext Cet Arc Hub Fac Fac Used RIF Installer . | . . . . . . . . . . . . Robots Hacked . | . . . . . . . . . . . . Non-combat . | . . . . . . . . . . . . Combat . | . . . . . . . . . . . . Robot Hacks Applied . | . . . . . . . . . . . . Relay Couplers Released 4 | . . . . . . . . . . 4 . Programmers 4 | . . . . . . . . . . 4 . Robots Rewired 25 | . . . . . . 24 . . . 1 . Allies Hacked 1 | . . . . . . 1 . . . . . Hacks Repelled . | . . . . . . . . . . . . Allies | -11 -10 -9 -8 -7 -6 -6 -6 -6 -6 -5 -4 -------- Run | Scr Mat Mat Mat Fac Fac Ext Cet Arc Hub Fac Fac Total Allies 28 | . . . . . . 27 . . . 1 . Largest Group 12 | . . . . . . 12 3 . . 1 . Highest-Rated Group 357 | . . . . . . 357 83 . . 47 . Highest-Rated Ally 47 | . . . . . . 37 32 . . 47 . Total Orders 13 | . . . . . . 13 . . . . . STAY 4 | . . . . . . 4 . . . . . FOLLOW 4 | . . . . . . 4 . . . . . EXPLORE 4 | . . . . . . 4 . . . . . RETURN 1 | . . . . . . 1 . . . . . Ally Attacks 269 | . . . . . . 246 23 . . . . Total Damage 5084 | . . . . . . 4817 267 . . . . Kills 42 | . . . . . . 40 2 . . . . Allies Corrupted 1 | . . . . . . 1 . . . . . Allies Melted 1 | . . . . . . 1 . . . . . Intel | -11 -10 -9 -8 -7 -6 -6 -6 -6 -6 -5 -4 ------- Run | Scr Mat Mat Mat Fac Fac Ext Cet Arc Hub Fac Fac Robot Analysis Total . | . . . . . . . . . . . . Derelict Logs Recovered . | . . . . . . . . . . . . Drone Launches 7 | . . . . . . 4 . . . . 3 Drone Recoveries 2 | . . . . . . 2 . . . . . Exploration | -11 -10 -9 -8 -7 -6 -6 -6 -6 -6 -5 -4 ------------- Run | Scr Mat Mat Mat Fac Fac Ext Cet Arc Hub Fac Fac Turns Passed 10471 | 50 161 802 800 1058 134 2881 370 376 376 2226 1237 Spaces Moved 5953 | 43 158 432 443 702 81 1617 180 170 229 1192 706 Core 72 | 20 . . . . . . . . . . 52 Treads 388 | . . . . . . 11 104 170 98 4 1 Legs . | . . . . . . . . . . . . Wheels 5493 | 23 158 432 443 702 81 1606 76 . 131 1188 653 Hover . | . . . . . . . . . . . . Flight . | . . . . . . . . . . . . Fastest Speed 50 | 50 90 90 93 103 100 96 106 160 110 103 50 Average Speed 111 | 81 90 92 98 105 100 112 141 160 136 116 106 Slowest Speed 220 | 150 90 100 120 110 103 220 160 160 160 220 220 Overloaded Moves . | . . . . . . . . . . . . Propulsion Burnouts . | . . . . . . . . . . . . Robots Hopped 1 | . . . . . . 1 . . . . . Cave-ins Triggered . | . . . . . . . . . . . . Exploration Rate (%) 39 | 3 31 37 44 25 4 98 69 88 20 33 21 Regions Visited 11 Branch Regions 4 Pre-discovered Areas . | . . . . . . . . . . . . Known Exits Taken 3 | . 1 1 . . . . . . . 1 . Unknown Exits Taken 8 | 1 . . 1 1 1 1 1 1 1 . . Scrap Searched . | . . . . . . . . . . . . Spaces Dug 1 | . . . . . . . . . . 1 . Terrain Destroyed 308 | . 3 2 2 . . 2 4 4 147 50 94 Melee . | . . . . . . . . . . . . Projectile 52 | . . . 2 . . 2 4 4 1 27 12 AOE 256 | . 3 2 . . . . . . 146 23 82 Terrain Rammed . | . . . . . . . . . . . . Walls Destroyed . | . . . . . . . . . . . . Machines Disabled . | . . . . . . . . . . . . Actions | -11 -10 -9 -8 -7 -6 -6 -6 -6 -6 -5 -4 --------- Run | Scr Mat Mat Mat Fac Fac Ext Cet Arc Hub Fac Fac Total 8526 | 55 171 680 654 948 109 2425 235 246 268 1705 1030 Wait 1019 | . 2 99 77 143 . 302 4 47 14 238 93 Move 5940 | 42 157 431 442 701 80 1614 179 169 228 1191 706 Hop 1 | . . . . . . 1 . . . . . Pick Up 191 | 6 6 25 8 19 7 39 4 4 4 37 32 Fast Attach 85 | 3 . 6 14 4 . 17 5 1 1 22 12 Attach 152 | 3 2 16 8 10 7 30 4 1 3 25 43 Detach 9 | . . . 2 . . . . . . 1 6 Swap 79 | 1 . 4 8 5 1 21 2 3 . 19 15 Drop 179 | . 1 21 20 14 2 43 7 3 6 36 26 Fire 604 | . 3 78 75 36 11 119 30 18 12 135 87 Melee 6 | . . . . . . 1 . . . . 5 Ram 5 | . . . . . . . . . . . 5 Kick . | . . . . . . . . . . . . Crush . | . . . . . . . . . . . . Escape Stasis 48 | . . . . 16 . 32 . . . . . Rewire 207 | . . . . . 1 205 . . . 1 . Trap . | . . . . . . . . . . . . Miscellaneous 1 | . . . . . . 1 . . . . . Route ------- -11/Scrapyard -10/Materials (discovered 4 exits: *Mat x3 / Min) -9/Materials (discovered 3 exits: *Mat x3) -8/Materials -7/Factory -6/Factory -6/Extension (discovered 2 exits: *Fac / *Cet) -6/Cetus -6/Archives (discovered 3 exits: *Fac / *Hub x2) -6/Hub_04(d) -5/Factory (discovered 4 exits: *Fac x4) -4/Factory (discovered 2 exits: *Upp x2) History --------- Turn | Location | Event 10 | -11/Scrapyard | Discovered new exit (range 16) 51 | -11/Scrapyard | Entered Materials 93 | -10/Materials | Identified exit to Materials 192 | -10/Materials | Identified exit to Mines 212 | -10/Materials | Entered another Materials area 212 | -9/Materials | Evolved 2 slots: Utility x1, Weapon x1 311 | -9/Materials | Discovered new exit (range 17) 872 | -9/Materials | Identified exit to Materials 999 | -9/Materials | Build established: Gunner 1007 | -9/Materials | Repaired Cld. Ion Engine 1014 | -9/Materials | Entered another Materials area 1014 | -8/Materials | Evolved 2 slots: Power x1, Propulsion x1 1587 | -8/Materials | Lost 3 parts (1p1n1w) 1761 | -8/Materials | Discovered new exit (range 16) 1814 | -8/Materials | Entered Factory 1814 | -7/Factory | Evolved 2 slots: Utility x2 2116 | -7/Factory | Build established: Scavenger-Tank 2347 | -7/Factory | Garrison activated, responded to threat 2763 | -7/Factory | Discovered new exit (range 17) 2872 | -7/Factory | Entered another Factory area 2872 | -6/Factory | Evolved 2 slots: Propulsion x2 2978 | -6/Factory | Discovered new exit (range 13) 3006 | -6/Factory | Entered Extension 3124 | -6/Extension | Rescued a captive Derelict 3125 | -6/Extension | Rescued a captive Derelict 3238 | -6/Extension | Lost 9 parts (1p5n1u2w) 3481 | -6/Extension | Disrupted transfer network 3925 | -6/Extension | Lost 3 parts (1n1u1w) 4268 | -6/Extension | Spotted B-75 Beast 4836 | -6/Extension | Build established: Commander-Tank 4884 | -6/Extension | Allies destroyed B-75 Beast 4886 | -6/Extension | Spotted B-75 Beast 4887 | -6/Extension | Allies destroyed B-75 Beast 5128 | -6/Extension | Discovered new exit (range 20) 5131 | -6/Extension | Discovered new exit (range 18) 5456 | -6/Extension | First assault squad dispatched 5469 | -6/Extension | Disrupted transfer network 5583 | -6/Extension | Rescued a captive Derelict 5887 | -6/Extension | Entered Cetus 5887 | -6/Cetus | Accompanied by 3 allies 5903 | -6/Cetus | Spotted Cetus Guard 5903 | -6/Cetus | Spotted Cetus Guard 5904 | -6/Cetus | Spotted Cetus Guard 5912 | -6/Cetus | Destroyed Cetus Guard 5915 | -6/Cetus | Allies destroyed Cetus Guard 5916 | -6/Cetus | Spotted Cetus Guard 5939 | -6/Cetus | Destroyed Cetus Guard 5943 | -6/Cetus | Allies destroyed Cetus Guard 6033 | -6/Cetus | Cetus Manufacturing Module disabled 6094 | -6/Cetus | Lost 3 parts (2n1w) 6188 | -6/Cetus | Discovered new exit (range 19) 6228 | -6/Cetus | Spotted Cetus Guard 6228 | -6/Cetus | Spotted Cetus Guard 6257 | -6/Cetus | Entered Archives 6465 | -6/Archives | Discovered new exit (range 19) 6472 | -6/Archives | Discovered new exit (range 20) 6496 | -6/Archives | Discovered new exit (range 20) 6502 | -6/Archives | Unable to access archive contents 6530 | -6/Archives | Unable to access archive contents 6557 | -6/Archives | Unable to access archive contents 6577 | -6/Archives | Unable to access archive contents 6633 | -6/Archives | Entered Hub_04(d) 6734 | -6/Hub_04(d) | Discovered new exit (range 14) 6962 | -6/Hub_04(d) | Network Hub disabled 6963 | -6/Hub_04(d) | Core integrity fell below 50% 6998 | -6/Hub_04(d) | Spotted Lightning 6998 | -6/Hub_04(d) | Spotted Lightning 7009 | -6/Hub_04(d) | Entered Factory 7009 | -5/Factory | Evolved 2 slots: Utility x1, Weapon x1 7137 | -5/Factory | Lost 4 parts (1p1n2w) 7332 | -5/Factory | Build established: Scavenger-Gunner 7691 | -5/Factory | Garrison activated, responded to threat 8546 | -5/Factory | Identified exit to Factory 8732 | -5/Factory | System corruption reached 10% 8809 | -5/Factory | First assault squad dispatched 8898 | -5/Factory | Destroyed 7 combat bots 8936 | -5/Factory | Lost 4 parts (4w) 9107 | -5/Factory | Lost 3 parts (1n1u1w) 9208 | -5/Factory | Spotted B-75 Beast 9235 | -5/Factory | Entered another Factory area 9235 | -4/Factory | Evolved 2 slots: Utility x2 9263 | -4/Factory | Lost 5 parts (2n3w) 9696 | -4/Factory | Identified exit to Upper Caves 9898 | -4/Factory | Found Prototype Device 9898 | -4/Factory | Identified EM Disruption Field 9925 | -4/Factory | Spotted B-86 Titan 9937 | -4/Factory | Build established: Scavenger-Tank 10045 | -4/Factory | Lost 4 parts (1u3w) 10235 | -4/Factory | First assault squad dispatched 10406 | -4/Factory | Core integrity fell below 50% 10446 | -4/Factory | Lost 27 parts (4p6n7u10w) 10468 | -4/Factory | Core integrity fell below 20% 10472 | -4/Factory | Destroyed by G-67 Veteran with Plasma Rifle Last Messages --------------- 10445_ P-70 Sage destroyed. 10447_ G-67 Veteran knocked back. 10449_ System corrupted: Hvy. Gauss Cannon targeting data glitched. 10451_ Impulse Thruster destroyed. 10451_ G-67 Veteran destroyed. 10459_ System corrupted: Hvy. Gauss Cannon jammed. 10461_ G-67 Veteran suffers critical hit. 10461_ Destroyed Adv. Heat Sink. 10461_ G-67 Veteran knocked back. 10463_ P-70 Sage resets G-67 Veteran, system corruption cleaned. 10463_ Slug penetrates G-67 Veteran. 10463_ G-67 Veteran knocked back. 10465_ Hvy. Gauss Cannon destroyed. 10467_ Slammed into P-70 Sage. 10468_ Imp. Core Analyzer permanently disabled. 10468_ Destabilizing: Short circuit. 10469_ Slammed into P-70 Sage. 10471_ U-05 Engineer builds a Wall. 10471_ Slammed into P-70 Sage. 10471_ Destabilizing: System corrupted (+2). Map ----- +----------------------------------------------------+ | ????######+######### #?????????# #??????# | | #??????????????????# #?????????# ######## """ | | #??????????????????# #?????????# + """ | | #?????????????????## ##????????###### # R" | | #????????????????## #?????????????# # """ | | #????????????????#" !############### # | | #?????????????????# > % + | | #?????????????????# ##### % # | | #?????????????????# #???# ! ## | | #????????????????####+#####?# ### # | | #????????????????# #?# # | | #????????????????#[! #?# # | | #????????????????#[! """ #?# ########## ## | | ###########??????# """ #?# #######??# # | | # #??????# """ #?# ## % ??# # | | # #??????# ! #?# ## ?# # | | #! #??????# ### ## ?# # | | + ################## = # # #= | | # / =* # # ##% | | # ################## ! # + %+ %[ | | # #???????????# ## ## ! # ## | | # #???????????# ## ########## ##= | | ###########???????????# ## ####### ##[ # | | #?????????????????????# g#g ##+## # | | #?????????????????????# !g/g= # ## | | #?????????????????????#!g@p;= "" # ! ## "" | | #?????????????????????# # m T" # ## "" | | #?????????????????????# # "" # !## "" | | #?????????????????????#! / ######## | | #?????????????????????###;### =![ #??????# "" | | ???????????????????????###?# =![ #??????# "" | | ????????????????????????????# =! #??????# "" | | ????????????????????????????# #??????# | | ???????????????????????????? +??????# | | ???????????????????????????# #??????# | | ???????????????????????????# #??????#+#+# | | ???????????????????????????# ??????????? | | ???????????????????????????# ### ##?????????? | | ???????????????????????????# #?? #??????????? | | ??????????????????????????? #?? #??????????? | | ???????????????????????????#### #??????????????? | | ??????????????????????????????? #??????????????? | | ??????????????????????????????? ???????????????? | | ?????????????????????????????????????????????????? | | ?????????????????????????????????????????????????? | | ?????????????????????????????????????????????????? | | ?????????????????????????????????????????????????? | | ?????????????????????????????????????????????????? | | ?????????????????????????????????????????????????? | | ?????????????????????????????????????????????????? | +----------------------------------------------------+ Best States ------------- Heat Dissipation 93 Coolant Potential 65 Energy Generation 41 Energy Capacity 895 Matter Stores 300 Matter Capacity 300 Sight Range 20 Robot Scan Range 10 Terrain Scan Density 10 Power Amplification 20 Armor Coverage 525 Resistance: EM 50 Power Shielding 66 Weapon Cycling 20 Evasion (%) 50 Targeting Accuracy 6 Core Analysis 8 Recoil Reduction 5 Offensive Hacking 10 Item Schematics ----------------- Lrg. Storage Unit | -9/Materials | Scanalyzed Med. Armor Plating | -9/Materials | Scanalyzed Com. Wheel | -9/Materials | Scanalyzed Imp. Light Cannon | -9/Materials | Scanalyzed Beam Cannon | -9/Materials | Scanalyzed Robot Schematics ------------------ None Fabricated ------------ Nothing Alien Tech Used ----------------- None Achievements -------------- A New Friend Challenges ------------ None Game ------ Seed PrecisionGravitonActivator Manual? 0 Play Time 02:44:53 Cumulative 74.6 hours Start 2021.04.12 @ 02:23:31 End 2021.04.12 @ 07:25:26 Sessions 3 Manual Loads 0 Difficulty Rogue Special Mode None Game No. 31 Rogue 31 Adventurer 0 Explorer 0 Win Type - Total 0 Types 0/0/0/0/0/0/0/0/0 Lore% 47 Gallery% 54 Achievement% 41 Wizard Run 0 Options --------- ASCII 0 Keyboard 0 Movement Mouse Keybinds 0 Fullscreen 2 Font 12/Smallcaps Map View 83x54 Tactical HUD 1 Map Filters NONE Filters NONE Steam X RUN: a180cf43-66ab-43f5-9ea0-0020ea1a3166